Workbook

Sheet Mestaruussarja
B1: Jukka Vartiainen | E1: 20.4.1963 Sotkamo
B2: MESTARUUSSARJA | E2: Runkosarja | I2: Kärkilyönnit (KL), pesänvälit | P2: Ylempi loppusarja | W2: Alempi loppusarja | AD2: Arvo-ottelut | AH2: Mitalit
B3: Vuosi | C3: Sija | D3: Seura | E3: OTT | F3: KUN | G3: LÖI | H3: TOI | I3: KL | J3: 0 > 1 | K3: 1 > 2 | L3: 2 > 3 | M3: 3 > k | N3: KL-% | P3: OTT | Q3: KUN | R3: LÖI | S3: TOI | T3: KL | U3: KL-% | W3: OTT | X3: KUN | Y3: LÖI | Z3: TOI | AA3: KL | AB3: KL-% | AD3: IL | AE3: LL | AF3: Cup | AG3: K | AH3: H | AI3: P
B4: 1982 | C4: 7. | D4: SoJy | F4: ykkössarja
B5: 1983 | C5: 1. | D5: SoJy | F5: ykkössarja
B6: 1984 | C6: 6. | D6: SoJy | E6: 14 | F6: 0 | G6: 5 | H6: 4 | I6: 43 | J6: 7 | K6: 18 | L6: 13 | M6: 5 | N6: 48.3 %
B7: 1985 | C7: 8. | D7: SoJy | E7: 15 | F7: 0 | G7: 4 | H7: 0 | I7: 21 | J7: 5 | K7: 7 | L7: 5 | M7: 4 | N7: 28.8 % | W7: 3 | X7: 0 | Y7: 1 | Z7: 1 | AA7: 8 | AB7: 44.0 % | AE7: 1
B8: 1986 | C8: 12. | D8: SoJy | E8: 7 | F8: 0 | G8: 1 | H8: 0 | I8: 11 | J8: 4 | K8: 3 | L8: 3 | M8: 1 | N8: 32.4 %
B9: 1987 | C9: 2. | D9: Lippo | F9: suomensarja
B10: 1988
B11: 1989
B12: 1990 | C12: 3. | D12: SoJy 2 | F12: ykkössarja
B13: 1991 | C13: 4. | D13: SoJy 2 | F13: ykkössarja
B14: Yhteensä | E14: 36 | F14: 0 | G14: 10 | H14: 4 | I14: 75 | J14: 16 | K14: 28 | L14: 21 | M14: 10 | N14: 38.3 % | P14: =SUM(P7:P8) -> 0 | Q14: =SUM(Q7:Q8) -> 0 | R14: =SUM(R7:R8) -> 0 | S14: =SUM(S7:S8) -> 0 | T14: =SUM(T7:T8) -> 0 | U14: 0.0 % | W14: =PRODUCT(E20) -> 3 | X14: =PRODUCT(F20) -> 0 | Y14: =PRODUCT(G20) -> 1 | Z14: =PRODUCT(H20) -> 1 | AA14: =PRODUCT(I20) -> 8 | AB14: =PRODUCT(N20) -> 44.0 % | AD14: 0 | AE14: 1 | AF14: 0 | AG14: 0 | AH14: 0 | AI14: 0
B15: Pesispörssi | D15: 72.7
B17: URA SM-SARJASSA | E17: OTT | F17: KUN | G17: LÖI | H17: TOI | I17: KL | K17: ka/L | L17: ka/T | M17: ka/KL | N17: KL-% | P17: ENSIMMÄISET RUNKOSARJASSA
B18: Runkosarja | E18: 36 | F18: 0 | G18: 10 | H18: 4 | I18: 75 | K18: 0.28 | L18: 0.11 | M18: 2.08 | N18: 38.3 % | P18: Ottelu | R18: 06.05. 1984 SoJy - Tahko 10-5 | Y18: 1. ottelu | AA18: 21 v 0 kk 16 pv
B19: Ylempi loppusarja | P19: Lyöty | R19: 23.05. 1984 SoJy - SiiPe 15-9 | Y19: 6. ottelu | AA19: 21 v 1 kk 3 pv
B20: Alempi loppusarja | E20: 3 | F20: 0 | G20: 1 | H20: 1 | I20: 8 | K20: 0.33 | L20: 0.33 | M20: 2.67 | N20: 44.0 % | P20: Tuotu | R20: 06.05. 1984 SoJy - Tahko 10-5 | Y20: 1. ottelu | AA20: 21 v 0 kk 16 pv
B21: KAIKKI | E21: 39 | F21: 0 | G21: 11 | H21: 5 | I21: 83 | K21: 0.28 | L21: 0.13 | M21: 2.13 | N21: 38.8 % | P21: Kunnari
B23: Seurat | D23: SoJy = Sotkamon Jymy (1909)
D24: Lippo = Oulun Lippo (1955)

Sheet MYP, MSS
B1: Jukka Vartiainen | E1: 20.4.1963 Sotkamo
B2: YKKÖSPESIS | E2: Runkosarja | L2: Runkosarja TOP-10 | Q2: Jatkosarjat | X2: SUOMENSARJA | AA2: Runkosarja | AH2: Runkosarja TOP-10 | AM2: Jatkosarjat
B3: Vuosi | C3: Sija | D3: Seura | E3: OTT | F3: KUN | G3: LÖI | H3: TOI | I3: KL | J3: KL-% | L3: LÖI | M3: TOI | N3: L+T | O3: KL | Q3: OTT | R3: KUN | S3: LÖI | T3: TOI | U3: KL | V3: KL-% | X3: Vuosi | Y3: Sija | Z3: Seura | AA3: OTT | AB3: KUN | AC3: LÖI | AD3: TOI | AE3: KL | AF3: KL-% | AH3: LÖI | AI3: TOI | AJ3: L+T | AK3: KL | AM3: OTT | AN3: KUN | AO3: LÖI | AP3: TOI | AQ3: KL | AR3: KL-%
B4: 1982 | C4: 7. | D4: SoJy | E4: 8 | F4: 0 | G4: 1 | H4: 1 | Q4: 8 | R4: 0 | S4: 3 | T4: 3
B5: 1983 | C5: 1. | D5: SoJy | E5: 5 | F5: 0 | G5: 3 | H5: 1 | Q5: 7 | R5: 0 | S5: 4 | T5: 7
X7: 1987 | Y7: 2. | Z7: Lippo | AA7: 19 | AB7: 0 | AC7: 17 | AD7: 7
X9: 1990 | Y9: 3. | Z9: SoJy 2 | AA9: 22 | AB9: 1 | AC9: 21 | AD9: 13
X10: 1991 | Y10: 4. | Z10: SoJy 2 | AA10: 22 | AB10: 2 | AC10: 60 | AD10: 23 | AH10: 3. | AJ10: 3.
B11: YHTEENSÄ | E11: =SUM(E4:E10) -> 13 | F11: =SUM(F4:F10) -> 0 | G11: =SUM(G4:G10) -> 4 | H11: =SUM(H4:H10) -> 2 | I11: =SUM(I4:I10) -> 0 | J11: 0.0 % | K11: =SUM(K4:K10) -> 0 | Q11: =SUM(Q4:Q10) -> 15 | R11: =SUM(R4:R10) -> 0 | S11: =SUM(S4:S10) -> 7 | T11: =SUM(T4:T10) -> 10 | U11: =SUM(U4:U10) -> 0 | V11: 0.0 % | W11: =SUM(W4:W10) -> 0 | X11: YHTEENSÄ | AA11: =SUM(AA4:AA10) -> 63 | AB11: =SUM(AB4:AB10) -> 3 | AC11: =SUM(AC4:AC10) -> 98 | AD11: =SUM(AD4:AD10) -> 43 | AE11: =SUM(AE4:AE10) -> 0 | AF11: 0.0 % | AG11: =SUM(AG4:AG10) -> 0 | AM11: =SUM(AM4:AM10) -> 0 | AN11: =SUM(AN4:AN10) -> 0 | AO11: =SUM(AO4:AO10) -> 0 | AP11: =SUM(AP4:AP10) -> 0 | AQ11: =SUM(AQ4:AQ10) -> 0 | AR11: 0.0 % | AS11: =SUM(AS4:AS10) -> 0
B13: KAIKKI OTTELUT | E13: OTT | F13: KUN | G13: LÖI | H13: TOI | I13: KL | J13: KL-% | L13: ka/L | M13: ka/T | N13: ka/l+t | O13: ka/kl | R13: Seurat | T13: SoJy = Sotkamon Jymy (1909)
B14: SUPERPESIS | E14: 39 | F14: 0 | G14: 11 | H14: 5 | I14: 83 | J14: 38.8 % | K14: =PRODUCT(I14/J14) -> 213.9175258 | L14: =PRODUCT((F14+G14)/E14) -> 0.28 | M14: =PRODUCT(H14/E14) -> 0.13 | N14: =PRODUCT((F14+G14+H14)/E14) -> 0.41 | O14: =PRODUCT(I14/E14) -> 2.13 | T14: Lippo = Oulun Lippo (1955)
B15: YKKÖSPESIS | E15: =PRODUCT(E11+Q11) -> 28 | F15: =PRODUCT(F11+R11) -> 0 | G15: =PRODUCT(G11+S11) -> 11 | H15: =PRODUCT(H11+T11) -> 12 | I15: =PRODUCT(I11+U11) -> 0 | J15: 0.0 % | K15: 0 | L15: =PRODUCT((F15+G15)/E15) -> 0.39 | M15: =PRODUCT(H15/E15) -> 0.43 | N15: =PRODUCT((F15+G15+H15)/E15) -> 0.82 | O15: =PRODUCT(I15/E15) -> 0.00
B16: SUOMENSARJA | E16: =PRODUCT(AA11+AM11) -> 63 | F16: =PRODUCT(AB11+AN11) -> 3 | G16: =PRODUCT(AC11+AO11) -> 98 | H16: =PRODUCT(AD11+AP11) -> 43 | I16: =PRODUCT(AE11+AQ11) -> 0 | J16: 0.0 % | K16: 0 | L16: =PRODUCT((F16+G16)/E16) -> 1.60 | M16: =PRODUCT(H16/E16) -> 0.68 | N16: =PRODUCT((F16+G16+H16)/E16) -> 2.29 | O16: =PRODUCT(I16/E16) -> 0.00
B17: YHTEENSÄ | E17: =SUM(E14:E16) -> 130 | F17: =SUM(F14:F16) -> 3 | G17: 120 | H17: 60 | I17: 83 | J17: 0.0 % | K17: =SUM(K14:K16) -> 213.9175258 | L17: =PRODUCT((F17+G17)/E17) -> 0.95 | M17: =PRODUCT(H17/E17) -> 0.46 | N17: =PRODUCT((F17+G17+H17)/E17) -> 1.41 | O17: 2.13

Sheet Arvo-ottelut
B1: ITÄ - LÄNSI - KORTTI
B2: Jukka Vartiainen | C2: 20.4.1963 Sotkamo
B3: B-POJAT | C3: Itä - Länsi, tulos | D3: Joukkue | E3: Seura | G3: V | H3: T | I3: H | J3: Up. | K3: Lj. | L3: Palk. | M3: O | N3: K | O3: L | P3: T | Q3: KL | R3: 1 | S3: 2 | T3: 3 | U3: k | V3: KL-% | W3: Pelinjohtaja | X3: Yleisöä
B4: 12.07. 1980 Kajaani | C4: 8-13 | D4: Itä | E4: SoJy | G4: 1 | J4: 3k | K4: 2 | M4: 1 | P4: 2 | W4: Seppo Kerttula | X4: 106
B6: A-POJAT | C6: Itä - Länsi, tulos | D6: Joukkue | E6: Seura | G6: V | H6: T | I6: H | J6: Up. | K6: Lj. | L6: Palk. | M6: O | N6: K | O6: L | P6: T | Q6: KL | R6: 1 | S6: 2 | T6: 3 | U6: k | V6: KL-% | W6: Pelinjohtaja | X6: Yleisöä
B7: 25.07. 1981 Lohja | C7: 11-3 | D7: Itä | E7: SoJy | G7: 1 | J7: s | K7: 3 | L7: II p | M7: 1 | O7: 1 | P7: 2 | Q7: 3/5 | R7: 0/1 | S7: 1/2 | T7: 1/1 | U7: 1/1 | V7: 60.0 % | W7: Seppo Huuskonen | X7: 371
B8: 24.07. 1982 Ulvila | C8: 5-8 | D8: Itä | I8: 1 | J8: s | K8: 3 | M8: 1 | P8: 1 | Q8: 3/7 | R8: 1/2 | S8: 1/2 | T8: 1/3 | V8: 42.9 % | W8: Aki Pöntinen
B9: Yhteensä | G9: 1 | I9: =SUM(I2:I8) -> 1 | M9: 2 | O9: =SUM(O2:O8) -> 1 | P9: 3 | Q9: 6/12 | R9: 2/5 | S9: 6/9 | T9: 5/11 | U9: 2/8 | V9: 50.0 %
B11: LIITTO - LEHDISTÖ - KORTTI
B12: MIEHET | C12: Tulos | D12: Joukkue | E12: Seura | G12: V | H12: T | I12: H | J12: Up. | K12: Lj. | L12: Palk. | M12: O | N12: K | O12: L | P12: T | Q12: KL | R12: 1 | S12: 2 | T12: 3 | U12: k | V12: KL-% | W12: Pelinjohtaja | X12: Yleisöä
B13: 12.06. 1985 Sotkamo | C13: 13-4 | D13: Liitto | E13: SoJy | G13: 1 | K13: vai | M13: 1 | O13: 2 | Q13: 3/3 | T13: 1/1 | U13: 2/2 | V13: 100.0 % | W13: Aulis Väisänen | X13: 1600
B14: Ikä ensimmäisessä ottelussa | C14: 22 v 1 kk 23 pv
